bitfinex/quotes_BTCUSD_20240617
["timestamp","ask_amount","ask_price","bid_price","bid_amount"]
[1718636865090,0.88821688,65708.0,65707.0,0.0001832]
[1718636865242,1.19259288,65708.0,65707.0,0.0001832]
[1718636865440,0.73602888,65708.0,65707.0,0.0001832]
[1718636866274,0.73602888,65708.0,65707.0,0.0021832]
[1718636866732,0.73602888,65708.0,65707.0,0.0001832]
[1718636867043,0.73602888,65708.0,65707.0,0.0011832]
[1718636867243,0.73602888,65708.0,65707.0,0.1533732]
[1718636867244,0.65602888,65708.0,65707.0,0.1533732]
[1718636867355,0.65602888,65708.0,65707.0,0.23071432]
[1718636867565,0.65602888,65708.0,65707.0,0.07952432]
[1718636868023,0.65602888,65708.0,65707.0,0.07752432]
[1718636868425,0.65902888,65708.0,65707.0,0.07852432]
[1718636868874,0.65602888,65708.0,65707.0,0.07752432]
[1718636869097,0.65602888,65708.0,65707.0,0.07652432]
[1718636869462,0.66002888,65708.0,65707.0,0.07752432]
[1718636869667,0.66002888,65708.0,65707.0,0.07652432]
[1718636869668,0.67611472,65708.0,65707.0,0.07652432]
[1718636870081,0.68011472,65708.0,65707.0,0.07752432]
[1718636870685,0.68011472,65708.0,65707.0,0.07852432]
[1718636870686,0.68211472,65708.0,65707.0,0.07852432]
[1718636870883,0.67411472,65708.0,65707.0,0.07752432]
[1718636871273,0.67611472,65708.0,65707.0,0.07752432]
[1718636871764,0.67811472,65708.0,65707.0,0.07752432]
[1718636872151,0.67811472,65708.0,65707.0,0.22971432]
[1718636872424,0.67811472,65708.0,65707.0,1.08304732]
[1718636872425,0.04508584,65708.0,65707.0,1.08304732]
[1718636872630,0.006,65708.0,65707.0,1.57678511]
[1718636872821,0.006,65708.0,65707.0,1.58578511]
[1718636873056,0.002,65708.0,65707.0,1.81538511]
[1718636873468,0.006,65708.0,65707.0,1.81538511]
[1718636873593,0.002,65708.0,65707.0,1.81538511]
[1718636874029,0.00852,65709.0,65708.0,1.19486279]
[1718636874195,0.00852,65709.0,65708.0,1.50923879]
[1718636875276,0.00852,65709.0,65708.0,1.51323879]
[1718636875459,0.00852,65709.0,65708.0,1.52323879]
[1718636875826,0.00852,65709.0,65708.0,1.49923879]
[1718636876231,0.00852,65709.0,65708.0,1.50923879]
[1718636876531,0.00852,65709.0,65708.0,1.52323879]
[1718636876752,0.00852,65709.0,65708.0,1.50923879]
[1718636877159,0.00852,65709.0,65708.0,1.52323879]
[1718636877361,0.00852,65709.0,65708.0,1.50923879]
[1718636877561,0.00852,65709.0,65708.0,1.52323879]
[1718636878446,0.00852,65709.0,65708.0,1.52723879]
[1718636878655,0.00852,65709.0,65708.0,1.53723879]
[1718636879500,0.00852,65709.0,65708.0,1.82761479]
[1718636879703,0.00852,65709.0,65708.0,1.81361479]
[1718636879910,0.00852,65709.0,65708.0,2.28471967]
[1718636880110,0.00852,65709.0,65708.0,2.76351967]
[1718636880332,0.00852,65709.0,65708.0,2.74951967]
[1718636880721,0.00852,65709.0,65708.0,2.76351967]
[1718636880927,0.00852,65709.0,65708.0,2.76551967]
[1718636881440,0.00852,65709.0,65708.0,2.86551967]
[1718636881441,7.1e-07,65709.0,65708.0,2.86551967]
[1718636881689,7.1e-07,65709.0,65708.0,2.87951967]
[1718636882751,7.1e-07,65709.0,65708.0,2.86551967]
[1718636883005,7.1e-07,65709.0,65708.0,2.76551967]
[1718636883238,7.1e-07,65709.0,65708.0,2.87951967]
[1718636883673,7.1e-07,65709.0,65708.0,3.02951967]
[1718636884096,7.1e-07,65709.0,65708.0,3.07951967]
[1718636884585,0.00852,65743.0,65742.0,0.10238]
[1718636884804,0.00852,65743.0,65742.0,1.19431279]
[1718636885054,0.00852,65743.0,65742.0,0.89009379]
[1718636885275,0.00852,65743.0,65742.0,0.12954679]
[1718636885530,0.2168,65742.0,65739.0,0.0173]
[1718636886153,0.15272888,65741.0,65735.0,0.09238]
[1718636886362,0.15272888,65741.0,65733.0,0.0173]
[1718636886596,0.15272888,65741.0,65728.0,0.09238]
[1718636886597,0.152119,65738.0,65730.0,0.0173]
[1718636886819,0.152124,65736.0,65729.0,0.0173]
[1718636887050,0.152131,65733.0,65728.0,0.0173]
[1718636887268,0.60910988,65735.0,65728.0,0.0173]
[1718636887484,0.023,65732.0,65728.0,0.0173]
[1718636887704,0.023,65732.0,65728.0,0.10968]
[1718636887916,0.15272888,65735.0,65730.0,0.09238]
[1718636887917,0.023,65734.0,65730.0,0.09238]
[1718636888149,0.17572888,65734.0,65732.0,0.09238]
[1718636888377,0.17572888,65734.0,65733.0,0.09238]
[1718636888590,0.17572888,65734.0,65733.0,0.41650779]
[1718636888591,0.023,65734.0,65733.0,0.41650779]
[1718636889013,0.023,65734.0,65733.0,0.87289879]
[1718636889443,0.023,65734.0,65733.0,0.89019879]
[1718636889644,0.023,65734.0,65733.0,0.58593779]
[1718636890330,0.023,65734.0,65733.0,0.26181]
[1718636890459,0.023,65734.0,65733.0,0.28167679]
[1718636890916,0.023,65734.0,65733.0,0.002]
[1718636891123,0.023,65734.0,65726.0,0.32415579]
[1718636891124,0.17572888,65734.0,65724.0,0.09238]
[1718636891340,0.304292,65727.0,65722.0,0.0173]
[1718636891873,0.023,65726.0,65722.0,0.0173]
[1718636892280,0.304301,65725.0,65718.0,0.0173]
[1718636892482,0.304301,65725.0,65718.0,0.10968]
[1718636892483,0.152158,65721.0,65718.0,0.10968]
[1718636892645,0.023,65720.0,65718.0,0.10968]
[1718636892845,0.023,65720.0,65719.0,0.0173]
[1718636893047,0.023,65725.0,65720.0,0.10968]
[1718636893679,0.17515,65725.0,65720.0,0.10968]
[1718636893888,0.17515,65725.0,65720.0,0.0173]
[1718636894080,0.023,65725.0,65720.0,0.10968]
[1718636894455,0.023,65725.0,65718.0,0.01]
[1718636894456,0.023,65725.0,65718.0,0.0273]
[1718636894663,0.45646,65723.0,65722.0,0.005]
[1718636894864,0.175153,65723.0,65722.0,0.005]
[1718636895071,0.023,65723.0,65718.0,0.11968]
[1718636895323,0.023,65723.0,65720.0,0.007]
[1718636895324,0.023,65722.0,65720.0,0.007]
[1718636895571,0.175156,65722.0,65718.0,0.09238]
[1718636895770,0.175156,65722.0,65720.0,0.008]
[1718636896203,0.152158,65721.0,65718.0,0.09238]
[1718636896383,0.023,65720.0,65718.0,0.09238]
[1718636896801,0.17572888,65720.0,65712.0,0.0173]
[1718636897004,0.152183,65710.0,65709.0,0.0173]
[1718636897328,0.175183,65710.0,65709.0,0.0173]
[1718636897532,0.456558,65709.0,65708.0,0.0173]
[1718636897742,0.76094,65708.0,65707.0,0.0001832]
[1718636897942,0.76094,65708.0,65705.0,0.0173]
[1718636897943,0.152193,65706.0,65705.0,0.0173]
[1718636898173,0.175193,65706.0,65705.0,0.0173]
[1718636898381,0.023,65706.0,65705.0,0.10968]
[1718636898583,0.304369,65710.0,65704.0,0.02080179]
[1718636898584,0.023,65708.0,65707.0,0.0173]
[1718636898825,0.023,65709.0,65704.0,0.018235]
[1718636899023,0.152193,65706.0,65704.0,0.13048179]
[1718636899233,0.023,65705.0,65704.0,0.110615]
[1718636899404,0.023,65705.0,65704.0,0.018235]
[1718636899603,0.304356,65713.0,65704.0,0.018235]
[1718636899604,0.023,65706.0,65704.0,0.018235]
[1718636899819,0.456585,65705.0,65704.0,0.000935]
[1718636900019,0.760975,65705.0,65704.0,0.000935]
[1718636900220,0.783975,65705.0,65704.0,0.000935]
[1718636900421,0.783975,65705.0,65704.0,0.002935]
[1718636900861,0.479585,65705.0,65704.0,0.002935]
[1718636901074,0.023,65705.0,65704.0,0.002935]
[1718636901428,0.152195,65705.0,65704.0,0.002935]
[1718636901631,0.479585,65705.0,65704.0,0.002935]
[1718636902173,0.479585,65705.0,65704.0,0.000935]
[1718636902699,0.025,65705.0,65704.0,0.13048179]
[1718636902903,0.025,65705.0,65704.0,0.89146879]
[1718636903607,0.002,65705.0,65704.0,1.39386379]
[1718636904408,0.002,65705.0,65704.0,1.08946879]
[1718636905063,0.002,65705.0,65704.0,1.09846879]
[1718636905476,0.152178,65713.0,65711.0,0.0173]
[1718636905679,0.456519,65715.0,65712.0,0.07634112]
[1718636905962,0.17572888,65714.0,65707.0,0.09238]
[1718636906179,0.17572888,65714.0,65704.0,0.018935]
[1718636906180,0.760975,65705.0,65704.0,0.018935]
[1718636906555,0.783975,65705.0,65704.0,0.009935]
[1718636906803,1.088365,65705.0,65704.0,0.009935]
[1718636907457,1.088365,65705.0,65704.0,0.000935]
[1718636907458,1.72829388,65705.0,65704.0,0.000935]
[1718636908297,1.72811079,65705.0,65704.0,0.000935]
[1718636909101,1.72811079,65705.0,65704.0,0.003935]
[1718636910050,1.72811079,65705.0,65704.0,0.000935]
[1718636911664,2.03250079,65705.0,65704.0,0.000935]
[1718636911858,1.72811079,65705.0,65704.0,0.000935]
[1718636912075,1.75522586,65705.0,65704.0,0.000935]
[1718636912265,2.05961586,65705.0,65704.0,0.000935]
[1718636912598,2.14723586,65705.0,65704.0,0.000935]
[1718636912969,2.16160939,65705.0,65704.0,0.000935]
[1718636913203,2.15398939,65705.0,65704.0,0.000935]
[1718636913432,1.84959939,65705.0,65704.0,0.000935]
[1718636914379,1.82248432,65705.0,65704.0,0.000935]
[1718636914834,1.21370432,65705.0,65704.0,0.000935]
[1718636915081,1.19933079,65705.0,65704.0,0.000935]
[1718636915314,0.000956,65710.0,65705.0,0.09238]
[1718636915539,0.152183,65710.0,65709.0,0.07634112]
[1718636915979,0.45655,65710.0,65709.0,0.07634112]
[1718636916590,0.783917,65710.0,65709.0,0.07634112]
[1718636916791,1.088284,65710.0,65709.0,0.07634112]
[1718636917030,0.456585,65705.0,65704.0,0.000935]
[1718636917227,1.24109388,65705.0,65704.0,0.000935]
[1718636918558,1.24209388,65705.0,65704.0,0.000935]
[1718636919203,0.95209417,65705.0,65704.0,0.000935]
[1718636920412,0.024,65705.0,65704.0,0.153132]
[1718636920617,0.024,65705.0,65704.0,0.093315]
[1718636920815,0.001,65705.0,65704.0,0.093315]
[1718636921014,0.024,65705.0,65704.0,0.093315]
[1718636921289,0.024,65705.0,65704.0,0.11318179]
[1718636921472,0.023,65711.0,65709.0,0.09238]
[1718636921669,0.01634959,65710.0,65708.0,0.09238]
[1718636921870,0.0152,65713.0,65708.0,0.09238]
[1718636921871,0.01634959,65709.0,65708.0,0.09238]
[1718636922072,0.01634959,65711.0,65708.0,0.09238]
[1718636922276,0.01634959,65710.0,65708.0,0.09238]
[1718636922601,0.01634959,65709.0,65708.0,0.09238]
[1718636922795,0.01655717,65711.0,65709.0,0.09238]
[1718636923038,0.01655717,65710.0,65709.0,0.09238]
[1718636923217,0.16928605,65710.0,65709.0,0.09238]
[1718636923631,0.19228605,65710.0,65709.0,0.09238]
[1718636923967,0.19228605,65710.0,65708.0,0.152188]
[1718636924195,0.023,65709.0,65708.0,0.09238]
[1718636924397,0.03955717,65709.0,65708.0,0.09238]
[1718636924599,0.03955717,65709.0,65707.0,0.09238]
[1718636924804,0.01655717,65708.0,65707.0,0.09238]
[1718636924983,0.03955717,65708.0,65706.0,0.10968]
[1718636925201,0.01655717,65707.0,65706.0,0.0173]
[1718636925379,0.03955717,65707.0,65706.0,0.0173]
[1718636925851,0.03955717,65707.0,65706.0,0.10968]
[1718636926606,0.03455717,65707.0,65706.0,0.10968]
[1718636927236,0.03455717,65707.0,65706.0,0.12954679]
[1718636927447,0.03555717,65707.0,65706.0,0.12954679]
[1718636927844,0.024,65707.0,65706.0,0.12954679]
[1718636928080,0.001,65707.0,65706.0,0.12954679]
[1718636928283,0.003,65707.0,65706.0,0.10968]
[1718636928424,0.026,65707.0,65706.0,0.10968]
[1718636928822,0.152195,65705.0,65704.0,0.000935]
[1718636928975,0.023,65705.0,65704.0,0.000935]
[1718636929174,0.783975,65705.0,65704.0,0.000935]
[1718636929385,1.24109388,65705.0,65704.0,0.000935]
[1718636929925,1.54548388,65705.0,65704.0,0.000935]
[1718636930137,1.24109388,65705.0,65704.0,0.000935]
[1718636930972,1.24109388,65705.0,65704.0,0.001935]
[1718636931507,1.24179459,65705.0,65704.0,0.000935]
[1718636932338,1.39450715,65705.0,65704.0,0.000935]
[1718636932583,1.40212715,65705.0,65704.0,0.000935]
[1718636932787,1.39450715,65705.0,65704.0,0.000935]
[1718636933287,1.24179459,65705.0,65704.0,0.000935]
[1718636933500,0.93740459,65705.0,65704.0,0.000935]
[1718636933952,0.17642959,65705.0,65704.0,0.000935]
[1718636934162,0.001,65705.0,65704.0,0.000935]
[1718636934588,0.153195,65705.0,65704.0,0.000935]
[1718636935463,0.024,65705.0,65704.0,0.000935]
[1718636936304,0.176195,65705.0,65704.0,0.000935]
[1718636936761,0.19222818,65705.0,65704.0,0.000935]
[1718636939534,0.49661818,65705.0,65704.0,0.000935]
[1718636939736,1.25812706,65705.0,65704.0,0.000935]
[1718636941729,1.38632206,65705.0,65704.0,0.000935]
[1718636941935,1.53851706,65705.0,65704.0,0.000935]
[1718636942509,1.23412706,65705.0,65704.0,0.000935]
[1718636942716,1.24790007,65705.0,65704.0,0.000935]
[1718636943300,1.73122007,65705.0,65704.0,0.000935]
[1718636943497,1.72360007,65705.0,65704.0,0.000935]
[1718636943897,1.75422007,65705.0,65704.0,0.000935]
[1718636944099,1.74660007,65705.0,65704.0,0.000935]
[1718636944302,1.75460007,65705.0,65704.0,0.000935]
[1718636944917,2.05899007,65705.0,65704.0,0.000935]
[1718636945114,2.06661007,65705.0,65704.0,0.000935]
[1718636945342,1.90731263,65705.0,65704.0,0.000935]
[1718636945784,1.91493263,65705.0,65704.0,0.000935]
[1718636945920,1.90731263,65705.0,65704.0,0.000935]
[1718636946296,1.75460007,65705.0,65704.0,0.000935]
[1718636949352,2.06661007,65705.0,65704.0,0.000935]
[1718636949552,2.03765388,65705.0,65704.0,0.000935]
[1718636949760,1.76380622,65705.0,65704.0,0.000935]
[1718636949976,2.06819622,65705.0,65704.0,0.000935]
[1718636950358,1.90889878,65705.0,65704.0,0.000935]
[1718636950559,1.91651878,65705.0,65704.0,0.000935]
[1718636950968,2.22090878,65705.0,65704.0,0.000935]
[1718636951116,2.28611271,65705.0,65704.0,0.000935]
[1718636951321,3.02881271,65705.0,65704.0,0.000935]
[1718636951631,2.69391271,65705.0,65704.0,0.000935]
[1718636951834,2.51031271,65705.0,65704.0,0.000935]
[1718636951988,3.54990271,65705.0,65704.0,0.000935]
[1718636952183,3.68277863,65705.0,65704.0,0.000935]
[1718636952482,3.68277863,65705.0,65704.0,0.001935]
[1718636952860,3.73677863,65705.0,65704.0,0.002935]
[1718636953296,3.73277863,65705.0,65704.0,0.001935]
[1718636953506,3.01277863,65705.0,65704.0,0.001935]
[1718636953721,3.58677863,65705.0,65704.0,0.002935]
[1718636953922,3.59743639,65705.0,65704.0,0.001935]
[1718636954124,3.02743639,65705.0,65704.0,0.001935]
[1718636954342,2.89956047,65705.0,65704.0,0.002935]
[1718636954486,3.56956047,65705.0,65704.0,0.002935]
[1718636954695,4.50235539,65705.0,65704.0,0.002935]
[1718636954897,4.64547947,65705.0,65704.0,0.002935]
[1718636955097,4.32986947,65705.0,65704.0,0.002935]
[1718636955482,5.11385488,65705.0,65704.0,0.002935]
[1718636956123,4.79375256,65705.0,65704.0,0.002935]
[1718636956326,5.06375256,65705.0,65704.0,0.002935]
[1718636956545,5.06375256,65705.0,65704.0,0.001935]
[1718636956546,4.90586947,65705.0,65704.0,0.001935]
[1718636956763,4.91486947,65705.0,65704.0,0.002935]
[1718636957247,4.91486947,65705.0,65686.0,0.000935]
[1718636957248,1.457753,65687.0,65686.0,0.000935]
[1718636957515,1.64102422,65687.0,65686.0,0.000935]
[1718636957721,1.74102422,65687.0,65686.0,0.000935]
[1718636957960,1.76402422,65687.0,65686.0,0.000935]
[1718636958582,1.75640422,65687.0,65686.0,0.000935]
[1718636958759,1.75640422,65687.0,65686.0,0.001935]
[1718636958760,1.77202422,65687.0,65686.0,0.001935]
[1718636958993,1.77902422,65687.0,65686.0,0.001935]
[1718636959875,1.77140422,65687.0,65686.0,0.001935]
[1718636960044,1.77902422,65687.0,65686.0,0.001935]
[1718636960280,1.93173678,65687.0,65686.0,0.001935]
[1718636960496,1.61964278,65687.0,65686.0,0.001935]
[1718636961255,1.62726278,65687.0,65686.0,0.001935]
[1718636961460,1.61964278,65687.0,65686.0,0.001935]
[1718636962220,1.46693022,65687.0,65686.0,0.001935]
[1718636962597,1.47455022,65687.0,65686.0,0.001935]
[1718636963455,1.46693022,65687.0,65686.0,0.001935]
[1718636964760,1.47139979,65687.0,65686.0,0.001935]
[1718636965259,1.78349379,65687.0,65686.0,0.001935]
[1718636965522,1.47901979,65687.0,65686.0,0.001935]
[1718636965785,1.63173235,65687.0,65686.0,0.001935]
[1718636966222,1.96890635,65687.0,65686.0,0.001935]
[1718636967124,1.95328635,65687.0,65686.0,0.000935]
[1718636967325,1.94628635,65687.0,65686.0,0.000935]
[1718636967755,1.96790635,65687.0,65686.0,0.000935]
[1718636968188,1.96028635,65687.0,65686.0,0.000935]
[1718636968405,1.96790635,65687.0,65686.0,0.000935]
[1718636968624,1.18053622,65687.0,65686.0,0.000935]
[1718636968846,0.78706222,65687.0,65686.0,0.000935]
[1718636969072,0.46807952,65687.0,65686.0,0.249135]
[1718636969296,0.31584252,65687.0,65686.0,0.249135]
[1718636969924,0.30184252,65687.0,65686.0,0.249135]
[1718636970347,0.33884252,65687.0,65686.0,0.249135]
[1718636970630,0.04911364,65687.0,65686.0,0.51362079]
[1718636970858,0.06311364,65687.0,65686.0,0.341515]
[1718636971277,0.06311364,65687.0,65686.0,1.00859879]
[1718636971492,0.028,65687.0,65686.0,0.55188179]
[1718636971737,0.014,65687.0,65686.0,0.55188179]
[1718636971968,0.617828,65691.0,65686.0,0.55188179]
[1718636971969,0.4656,65691.0,65690.0,0.26447679]
[1718636972173,0.4656,65691.0,65690.0,0.70117679]
[1718636972380,0.4656,65691.0,65690.0,0.54894679]
[1718636973105,0.4656,65691.0,65690.0,0.70117679]
[1718636973315,0.4946,65691.0,65690.0,0.54894679]
[1718636973520,0.029,65691.0,65690.0,0.4367]
[1718636973943,0.036,65691.0,65690.0,0.53008]
[1718636974368,0.07173995,65691.0,65690.0,0.54994679]
[1718636974747,0.07173995,65691.0,65690.0,0.53008]
[1718636974947,0.036,65691.0,65690.0,0.53008]
[1718636975936,0.036,65691.0,65690.0,0.54994679]
[1718636976783,0.036,65691.0,65690.0,0.71947679]
[1718636976987,0.013,65691.0,65690.0,1.32839679]
[1718636977159,0.013,65691.0,65690.0,1.63285679]
[1718636977493,0.013,65691.0,65690.0,1.32839679]
[1718636977699,0.013,65691.0,65690.0,1.64285679]
[1718636978324,0.006,65691.0,65690.0,1.63185679]
[1718636978529,0.01247467,65693.0,65692.0,0.12954679]
[1718636979916,0.01447467,65693.0,65692.0,0.12954679]
[1718636980314,0.01447467,65693.0,65692.0,0.0173]
[1718636980516,0.03747467,65693.0,65692.0,0.12954679]
[1718636980715,0.04147467,65693.0,65692.0,0.12954679]
[1718636981623,0.04147467,65693.0,65692.0,0.0173]
[1718636981891,0.19369767,65693.0,65692.0,0.10968]
[1718636982269,0.456676,65692.0,65691.0,0.4535]
[1718636982443,0.456703,65688.0,65687.0,0.000935]
[1718636982630,0.79601047,65688.0,65687.0,0.000935]
[1718636982830,0.81901047,65688.0,65687.0,0.000935]
[1718636983671,0.81901047,65688.0,65687.0,0.003935]
[1718636984315,0.81901047,65688.0,65687.0,0.000935]
[1718636984730,0.97573935,65688.0,65687.0,0.000935]
[1718636985143,0.97773935,65688.0,65687.0,0.000935]
[1718636986801,1.28220835,65688.0,65687.0,0.000935]
[1718636987431,1.28982835,65688.0,65687.0,0.000935]
[1718636987636,2.27269735,65688.0,65687.0,0.000935]
[1718636987842,2.49470986,65688.0,65687.0,0.000935]
[1718636988050,2.60646675,65688.0,65687.0,0.000935]
[1718636988451,2.49670986,65688.0,65687.0,0.000935]
[1718636988986,2.48901009,65688.0,65687.0,0.000935]
[1718636989157,2.50301009,65688.0,65687.0,0.000935]
[1718636991457,2.36429753,65688.0,65687.0,0.000935]
[1718636991946,2.00800853,65688.0,65687.0,0.000935]
[1718636992148,1.97125653,65688.0,65687.0,0.000935]
[1718636992292,1.97887653,65688.0,65687.0,0.000935]
[1718636992659,2.04832853,65688.0,65687.0,0.000935]
[1718636992865,2.04649158,65688.0,65687.0,0.000935]
[1718636993224,1.97703958,65688.0,65687.0,0.000935]
[1718636993399,1.93671958,65688.0,65687.0,0.000935]
[1718636993607,1.96941958,65688.0,65687.0,0.000935]
[1718636993813,1.93671958,65688.0,65687.0,0.000935]
[1718636994213,1.95208207,65688.0,65687.0,0.000935]
[1718636995305,1.98478207,65688.0,65687.0,0.000935]
[1718636995840,2.14511463,65688.0,65687.0,0.000935]
[1718636996421,3.44555263,65688.0,65687.0,0.000935]
[1718636996622,2.72436528,65688.0,65687.0,0.000935]
[1718636996847,2.61053563,65688.0,65687.0,0.000935]
[1718636997114,2.91500463,65688.0,65687.0,0.000935]
[1718636997528,2.87053563,65688.0,65687.0,0.000935]
[1718636997756,3.19053563,65688.0,65687.0,0.000935]
[1718636997961,3.35093563,65688.0,65687.0,0.000935]
[1718636998153,4.90714163,65688.0,65687.0,0.000935]
[1718636998732,4.87914163,65688.0,65687.0,0.000935]
[1718636999139,4.90714163,65688.0,65687.0,0.000935]
[1718636999345,4.89314163,65688.0,65687.0,0.000935]
[1718636999563,4.81612463,65688.0,65687.0,0.000935]
[1718637000075,1.92615407,65688.0,65687.0,0.000935]
[1718637000319,3.09817107,65688.0,65687.0,0.000935]
[1718637000550,2.41762307,65688.0,65687.0,0.000935]
[1718637000811,1.83608207,65688.0,65687.0,0.000935]
[1718637001047,1.59908207,65688.0,65687.0,0.000935]
[1718637001273,1.58938207,65688.0,65687.0,0.000935]
[1718637001500,1.77479463,65688.0,65687.0,0.000935]
[1718637001721,1.82479463,65688.0,65687.0,0.000935]
[1718637002138,1.79679463,65688.0,65687.0,0.000935]
[1718637002360,1.46988207,65688.0,65687.0,0.000935]
[1718637002574,0.77301127,65688.0,65687.0,0.000935]
[1718637002778,1.38194927,65688.0,65687.0,0.000935]
[1718637003001,0.97748027,65688.0,65687.0,0.000935]
[1718637003497,0.06357939,65688.0,65687.0,0.440435]
[1718637003775,0.97748027,65688.0,65687.0,0.440435]
[1718637004000,0.97748027,65688.0,65687.0,0.532815]
[1718637004001,0.21630827,65688.0,65687.0,0.532815]
[1718637004458,0.06357939,65688.0,65687.0,0.70491879]
[1718637004682,0.06357939,65688.0,65687.0,1.00939279]
[1718637005152,0.04957939,65688.0,65687.0,1.00939279]
[1718637005378,0.06357939,65688.0,65687.0,1.00939279]
[1718637005614,0.014,65688.0,65687.0,1.02669279]
[1718637005848,0.028,65688.0,65687.0,1.02669279]
[1718637006514,0.014,65688.0,65687.0,1.02669279]
[1718637006906,0.47807467,65693.0,65692.0,0.0173]
[1718637007130,0.456676,65692.0,65691.0,0.09238]
[1718637007308,0.456676,65692.0,65689.0,0.57184679]
[1718637007309,0.15223,65690.0,65689.0,0.57184679]
[1718637007508,0.03733084,65690.0,65689.0,0.57184679]
[1718637008120,0.18956084,65690.0,65689.0,0.55454679]
[1718637008360,0.18956084,65690.0,65689.0,0.57184679]
[1718637008726,0.03733084,65690.0,65689.0,0.57184679]
[1718637008927,0.03733084,65690.0,65689.0,1.02854279]
[1718637009112,0.03733084,65690.0,65689.0,1.64747079]
[1718637009318,0.47807467,65693.0,65692.0,0.56892279]
[1718637009319,0.01247467,65693.0,65692.0,0.56892279]
[1718637009516,0.03547467,65693.0,65692.0,1.01582279]
[1718637009721,0.07209862,65693.0,65692.0,1.01582279]
[1718637009943,0.07209862,65693.0,65692.0,0.71137179]
[1718637010147,0.08609862,65693.0,65692.0,0.71137179]
[1718637010455,0.08609862,65693.0,65692.0,0.70137179]
[1718637010857,0.08609862,65693.0,65692.0,0.56644679]
[1718637011971,0.0999154,65693.0,65692.0,0.56644679]
[1718637013229,0.761127,65692.0,65691.0,0.09238]
[1718637013445,0.761127,65692.0,65687.0,0.000935]
[1718637013446,0.761172,65688.0,65687.0,0.000935]
[1718637013604,0.95052483,65688.0,65687.0,0.000935]
[1718637013808,1.27799383,65688.0,65687.0,0.000935]
[1718637015580,1.29199383,65688.0,65687.0,0.000935]
[1718637015802,2.03274699,65688.0,65687.0,0.000935]
[1718637016682,1.08749643,65688.0,65687.0,0.000935]
[1718637016931,0.47855843,65688.0,65687.0,0.000935]
[1718637017166,0.79702743,65688.0,65687.0,0.000935]
[1718637017389,0.34032443,65688.0,65687.0,0.11318179]
[1718637017667,0.34032443,65688.0,65687.0,0.093315]
[1718637017871,0.24032443,65688.0,65687.0,0.11318179]
[1718637018034,0.39255843,65688.0,65687.0,0.093315]
[1718637018247,0.69702743,65688.0,65687.0,0.11318179]
[1718637018451,0.39255843,65688.0,65687.0,0.11318179]
[1718637018625,0.24032443,65688.0,65687.0,0.11318179]
[1718637018826,0.69702743,65688.0,65687.0,0.093315]
[1718637019031,1.00149643,65688.0,65687.0,0.093315]
[1718637019866,1.00149643,65688.0,65687.0,0.000935]
[1718637020615,1.30596543,65688.0,65687.0,0.000935]
[1718637021026,1.62879155,65688.0,65687.0,0.000935]
[1718637021243,1.32432255,65688.0,65687.0,0.000935]
[1718637021380,1.30596543,65688.0,65687.0,0.000935]
[1718637022378,1.00149643,65688.0,65687.0,0.000935]
[1718637023664,1.30596543,65688.0,65687.0,0.000935]
[1718637024846,1.61043443,65688.0,65687.0,0.000935]
[1718637025025,1.00149643,65688.0,65687.0,0.000935]
[1718637025241,1.30596543,65688.0,65687.0,0.000935]
[1718637025442,0.69702743,65688.0,65687.0,0.18952291]
[1718637025654,0.24032443,65688.0,65687.0,0.61532291]
[1718637026032,0.24032443,65688.0,65687.0,0.53898179]
[1718637026698,0.39255843,65688.0,65687.0,0.53898179]
[1718637026854,0.39255843,65688.0,65687.0,0.519115]
[1718637027060,1.00149643,65688.0,65687.0,0.330815]
[1718637027276,1.30596543,65688.0,65687.0,0.000935]
[1718637027913,1.30596543,65688.0,65687.0,0.093315]
[1718637029156,1.30596543,65688.0,65687.0,0.000935]
[1718637029786,2.06393443,65688.0,65687.0,0.000935]
[1718637029995,2.34753443,65688.0,65687.0,0.000935]
[1718637030207,2.52352273,65688.0,65687.0,0.000935]
[1718637030414,2.40975359,65688.0,65687.0,0.000935]
[1718637030618,2.43419354,65688.0,65687.0,0.000935]
[1718637030861,2.5869061,65688.0,65687.0,0.000935]
[1718637031069,2.63961252,65688.0,65687.0,0.000935]
[1718637031505,2.54846615,65688.0,65687.0,0.000935]
[1718637031674,2.56246615,65688.0,65687.0,0.000935]
[1718637032032,2.22615359,65688.0,65687.0,0.000935]
[1718637032236,1.85497817,65688.0,65687.0,0.000935]
[1718637033684,1.93497817,65688.0,65687.0,0.000935]
[1718637033894,1.93538884,65688.0,65687.0,0.000935]
[1718637036882,2.23985784,65688.0,65687.0,0.000935]
[1718637037149,2.36005144,65688.0,65687.0,0.000935]
[1718637037434,2.3937467,65688.0,65687.0,0.000935]
[1718637037623,3.04035526,65688.0,65687.0,0.000935]
[1718637037823,2.93844044,65688.0,65687.0,0.000935]
[1718637038033,2.63397144,65688.0,65687.0,0.000935]
[1718637038413,4.17194044,65688.0,65687.0,0.000935]
[1718637038636,4.58201944,65688.0,65687.0,0.000935]
[1718637038805,4.61001944,65688.0,65687.0,0.000935]
[1718637039017,4.37594044,65688.0,65687.0,0.000935]
[1718637039198,4.36194044,65688.0,65687.0,0.000935]
[1718637039395,4.53224044,65688.0,65687.0,0.000935]
[1718637040030,4.43224044,65688.0,65687.0,0.000935]
[1718637040786,4.53641417,65688.0,65687.0,0.000935]
[1718637040938,4.33881417,65688.0,65687.0,0.000935]
[1718637041139,4.35281417,65688.0,65687.0,0.000935]
[1718637042227,4.36801417,65688.0,65687.0,0.000935]
[1718637042644,4.38321417,65688.0,65687.0,0.000935]
[1718637043235,4.68768317,65688.0,65687.0,0.000935]
[1718637043431,4.38321417,65688.0,65687.0,0.000935]
[1718637044795,4.68768317,65688.0,65687.0,0.000935]
[1718637045002,1.065967,65668.0,65667.0,0.07634112]
[1718637045202,1.065967,65668.0,65664.0,0.4311]
[1718637045203,0.76144,65665.0,65664.0,0.2336]
[1718637045404,0.456877,65663.0,65662.0,0.009361]
[1718637045563,1.04904,65663.0,65662.0,0.009361]
[1718637045766,1.68121,65663.0,65662.0,0.009361]
[1718637048444,1.69521,65663.0,65662.0,0.009361]
[1718637048646,1.67436088,65663.0,65662.0,0.009361]
[1718637048852,1.70791811,65663.0,65662.0,0.009361]